bitfinex-derivatives/quotes_ETHF0:USTF0_20250126
["timestamp","ask_amount","ask_price","bid_price","bid_amount"]
[1737913568173,0.5048,3335.9,3335.6,0.59967]
[1737913568360,3.2078,3336.0,3335.4,1.5992763]
[1737913568563,3.80742,3336.0,3335.8,0.59963]
[1737913569471,0.59962,3336.0,3335.8,0.59963]
[1737913569677,0.59962,3336.0,3335.4,1.5992763]
[1737913569678,0.5159,3336.3,3335.6,3.2078]
[1737913569877,3.2078,3336.4,3336.0,1.5992763]
[1737913570092,3.2078,3336.4,3336.1,0.9911]
[1737913570375,3.80734,3336.4,3336.2,0.59956]
[1737913570674,0.59955,3336.3,3336.1,1.59068]
[1737913570872,3.2078,3339.3,3336.9,3.2078]
[1737913571175,3.2078,3339.3,3339.2,1.5992763]
[1737913571368,3.2078,3340.1,3339.2,2.1983063]
[1737913571673,3.80668,3340.1,3339.4,0.59898]
[1737913571882,0.5989,3340.0,3339.5,1.5992763]
[1737913572074,3.2078,3340.1,3339.5,1.5992763]
[1737913572373,3.80667,3340.1,3339.6,3.2078]
[1737913572576,4.8070763,3339.7,3338.7,3.2078]
[1737913572780,3.2078,3339.7,3339.1,3.2078]
[1737913573074,0.59902,3339.3,3339.1,3.2078]
[1737913573274,0.59903,3339.2,3339.1,3.2078]
[1737913573877,0.5162,3339.3,3338.6,3.2078]
[1737913574270,0.59907,3339.0,3338.6,3.2078]
[1737913574465,0.5162,3339.3,3338.6,3.2078]
[1737913574675,0.5162,3339.3,3337.8,0.00449324]
[1737913574676,3.2078,3338.7,3337.8,0.00449324]
[1737913574877,0.59926,3337.9,3337.8,3.21229324]
[1737913575077,0.5196,3338.6,3337.8,3.21229324]
[1737913575270,0.5992,3338.3,3337.8,3.21229324]
[1737913575470,0.59926,3337.9,3337.8,3.21229324]
[1737913575873,0.59919,3338.4,3337.8,3.21229324]
[1737913576077,0.5162,3338.5,3337.9,2.54566026]
[1737913576377,0.59913,3338.7,3338.3,3.2078]
[1737913576773,3.2078,3339.4,3338.3,3.2078]
[1737913576978,0.59911,3338.8,3338.3,3.2078]
[1737913577371,1.5742,3339.5,3338.7,3.2078]
[1737913577372,0.59907,3339.1,3338.7,3.2078]
[1737913577577,0.5991,3338.9,3338.7,3.2078]
[1737913577880,3.724,3339.5,3338.7,3.2078]
[1737913578082,0.5991,3338.8,3338.7,3.2078]
[1737913578678,4.78,3339.5,3337.9,3.02086026]
[1737913578679,3.2078,3339.1,3338.0,3.2078]
[1737913578877,0.59921,3338.3,3338.0,3.2078]
[1737913579478,0.59922,3338.2,3338.0,3.2078]
[1737913579679,0.5992,3338.3,3338.0,3.2078]
[1737913579872,4.70547,3339.1,3338.0,3.2078]
[1737913580083,0.59922,3338.2,3338.0,3.2078]
[1737913580683,0.59923,3338.1,3338.0,3.2078]
[1737913582486,0.59923,3338.2,3338.0,3.2078]
[1737913582785,0.59922,3338.2,3338.0,3.2078]
[1737913583174,0.5129,3338.6,3338.0,3.2078]
[1737913583381,0.59916,3338.5,3338.0,3.2078]
[1737913583578,0.5129,3338.6,3338.0,3.2078]
[1737913583780,0.59922,3338.2,3338.0,3.2078]
[1737913584381,0.5129,3338.6,3338.0,3.2078]
[1737913584687,0.59921,3338.2,3338.0,3.2078]
[1737913584887,0.5992,3338.3,3338.0,3.2078]
[1737913585284,0.5129,3338.6,3338.0,3.2078]
[1737913585588,0.59921,3338.2,3338.0,3.2078]
[1737913586984,0.5992,3338.3,3338.0,3.2078]
[1737913587187,0.5992,3338.3,3338.0,3.80705]
[1737913589488,0.59921,3338.2,3338.0,3.80705]
[1737913589684,0.59921,3338.2,3338.0,3.2078]
[1737913590591,0.5992,3338.3,3338.0,3.80704]
[1737913590794,0.5992,3338.3,3338.0,3.80705]
[1737913590986,0.59921,3338.2,3338.0,3.80705]
[1737913591387,0.5992,3338.3,3338.0,3.80705]
[1737913592988,0.59921,3338.2,3338.0,3.80705]
[1737913593191,4.70522,3339.6,3338.0,3.2078]
[1737913593393,0.59904,3339.2,3338.9,3.80688]
[1737913593694,0.59906,3339.1,3338.9,3.2078]
[1737913594283,0.59906,3339.1,3338.9,3.80688]
[1737913594897,0.59906,3339.1,3338.9,3.2078]
[1737913595100,0.59906,3339.1,3338.9,3.80688]
[1737913595592,0.59907,3339.0,3338.9,3.2078]
[1737913596695,3.2078,3339.4,3338.9,3.2078]
[1737913597398,0.59907,3339.0,3338.9,3.2078]
[1737913602301,0.59906,3339.1,3338.9,3.80689]
[1737913602703,0.59906,3339.1,3339.0,3.2078]
[1737913607402,0.59914,3338.6,3338.5,3.2078]
[1737913608402,0.9867,3338.8,3338.1,0.4766]
[1737913608403,0.5992,3338.3,3338.1,4.28362]
[1737913608606,0.59921,3338.2,3338.1,4.28363]
[1737913609104,0.59921,3338.3,3338.1,4.28363]
[1737913609607,0.59921,3338.2,3338.1,3.6844]
[1737913610807,0.59921,3338.2,3338.1,3.2078]
[1737913611509,0.59921,3338.2,3338.1,3.80703]
[1737913612108,0.59921,3338.2,3338.1,3.2078]
[1737913612502,0.59921,3338.2,3338.1,3.80703]
[1737913612904,0.59921,3338.2,3338.1,3.2078]
[1737913615505,0.59921,3338.2,3338.1,3.80703]
[1737913616411,0.9867,3338.8,3338.1,3.2078]
[1737913616604,0.59917,3338.5,3338.3,0.59919]
[1737913616804,0.59917,3338.5,3338.4,0.59917]
[1737913617210,0.59915,3338.6,3338.4,0.59917]
[1737913618110,0.9867,3338.8,3338.1,4.80071003]
[1737913618311,0.59912,3338.7,3338.4,0.59917]
[1737913618501,0.9867,3338.8,3338.4,0.59917]
[1737913618706,0.59914,3338.6,3338.5,0.4989]
[1737913618906,0.59914,3338.6,3338.5,1.09806]
[1737913619801,0.59914,3338.6,3338.5,0.4989]
[1737913620513,0.9867,3338.8,3338.5,0.4989]
[1737913620712,0.59914,3338.6,3338.5,0.4989]
[1737913621717,0.59919,3338.3,3338.2,0.5992]
[1737913622014,0.59919,3338.3,3338.2,1.1155]
[1737913622215,1.04,3340.4,3340.2,0.59884]
[1737913622514,3.2078,3340.9,3340.2,3.2078]
[1737913623019,0.59882,3340.5,3340.2,3.2078]
[1737913623316,3.2078,3340.9,3340.2,3.2078]
[1737913623613,0.59883,3340.3,3340.2,3.2078]
[1737913625915,0.59887,3340.1,3340.0,0.00449324]
[1737913627620,5.59887,3340.1,3340.0,0.00449324]
[1737913628119,5.59887,3340.1,3339.4,3.2078]
[1737913628120,0.59898,3339.5,3339.4,3.2078]
[1737913628317,6.038,3340.1,3339.4,3.2078]
[1737913628318,0.59878,3340.7,3339.5,2.09642]
[1737913628521,0.59883,3340.4,3340.0,0.59887]
[1737913628921,0.59883,3340.4,3340.1,0.59887]
[1737913629513,0.5988,3340.5,3340.0,0.59887]
[1737913629713,0.59884,3340.3,3340.0,0.59887]
[1737913631118,0.00446921,3340.6,3339.9,3.72799324]
[1737913631319,0.59881,3340.5,3340.2,0.59884]
[1737913631519,0.48686921,3340.6,3339.9,3.72799324]
[1737913632119,0.59888,3340.1,3339.9,3.72799324]
[1737913632316,0.59888,3340.1,3339.9,4.32689324]
[1737913632512,0.59888,3340.1,3339.9,3.72799324]
[1737913632914,0.00446921,3340.6,3339.9,3.21229324]
[1737913633118,0.9511,3340.5,3339.9,3.81119324]
[1737913633315,0.59886,3340.2,3339.9,3.81119324]
[1737913633518,0.9511,3340.5,3339.9,3.21229324]
[1737913633721,0.59887,3340.1,3339.9,3.81119324]
[1737913633921,0.9511,3340.5,3339.9,3.81119324]
[1737913634419,0.59889,3340.0,3339.9,3.21229324]
[1737913634621,0.59881,3340.5,3340.2,0.59885]
[1737913634826,0.60325921,3340.6,3340.4,3.2078]
[1737913635623,0.60325921,3340.6,3340.4,3.80661]
[1737913635816,0.60325921,3340.6,3340.4,3.2078]
[1737913636023,0.5988,3340.5,3340.4,3.2078]
[1737913636221,0.60326921,3340.6,3340.4,3.2078]
[1737913636424,0.5988,3340.5,3340.4,3.2078]
[1737913637630,0.00446921,3340.6,3340.5,0.5988]
[1737913637823,0.60324921,3340.6,3340.4,3.80661]
[1737913638024,0.00446921,3340.6,3340.4,3.80661]
[1737913638414,0.59866,3341.3,3340.5,0.5988]
[1737913638619,3.80641,3341.6,3341.0,2.04923509]
[1737913638828,3.2078,3341.6,3341.1,0.5212]
[1737913639126,3.2078,3341.6,3341.0,2.04923509]
[1737913639428,0.59866,3341.3,3341.0,2.64793509]
[1737913639620,0.59868,3341.2,3341.0,2.04923509]
[1737913639925,0.5061,3341.5,3341.0,2.04923509]
[1737913640127,3.80641,3341.6,3341.3,0.59865]
[1737913640322,0.59849,3342.3,3341.9,0.59854]
[1737913640517,3.2078,3342.8,3341.8,3.2078]
[1737913640717,0.4841,3342.7,3341.8,3.21229324]
[1737913641025,0.59855,3341.9,3341.8,3.21229324]
[1737913641220,3.2078,3342.4,3341.8,3.21229324]
[1737913641412,0.5985,3342.2,3341.8,3.21229324]
[1737913641612,0.59852,3342.1,3341.8,3.21229324]
[1737913642022,0.59855,3341.9,3341.8,3.21229324]
[1737913643827,3.80635,3341.9,3341.8,0.00449324]
[1737913645315,4.30915,3341.9,3341.8,0.00449324]
[1737913645524,0.59869,3341.1,3341.0,0.4826]
[1737913645726,0.59873,3340.9,3340.8,3.2078]
[1737913646222,0.59878,3340.7,3340.4,0.4813]
[1737913646426,0.59878,3340.6,3340.4,0.4813]
[1737913646614,0.5988,3340.5,3340.4,0.4813]
[1737913646928,0.00449324,3340.9,3340.4,0.4813]
[1737913646929,0.59878,3340.6,3340.4,0.4813]
[1737913647120,0.59876,3340.7,3340.4,0.4813]
[1737913647323,0.5988,3340.5,3340.4,0.4813]
[1737913649425,0.59882,3340.4,3340.3,3.2078]
[1737913649921,0.5112,3340.8,3340.3,3.2078]
[1737913649922,0.5112,3340.8,3340.4,0.59881]
[1737913650127,0.5988,3340.5,3340.3,5.25703509]
[1737913650330,0.5112,3340.8,3340.3,5.85586509]
[1737913650531,0.5988,3340.6,3340.3,5.85586509]
[1737913650724,0.5988,3340.6,3340.3,5.25703509]
[1737913651026,0.5988,3340.5,3340.3,5.25703509]
[1737913651328,0.00449324,3340.9,3340.3,5.25703509]
[1737913651531,0.59881,3340.5,3340.3,5.25703509]
[1737913651721,0.59882,3340.4,3340.3,5.25703509]
[1737913652122,0.49669324,3340.9,3340.3,5.25703509]
[1737913652123,0.00449324,3340.9,3340.4,1.49705]
[1737913652322,0.00449324,3340.9,3340.8,5.85577509]
[1737913654527,3.21042226,3341.9,3340.8,5.25703509]
[1737913654723,3.2078,3342.4,3341.8,0.59857]
[1737913654924,3.2078,3342.4,3342.3,0.59848]
[1737913655119,0.5094,3343.2,3342.3,0.59848]
[1737913655324,0.5984,3342.7,3342.5,0.59843]
[1737913655526,0.5984,3342.7,3342.1,0.5217]
[1737913655827,0.59843,3342.6,3342.4,0.59845]
[1737913656027,3.2078,3342.8,3342.4,0.59845]
[1737913656329,0.59845,3342.5,3342.3,0.00449324]
[1737913657134,3.2078,3342.8,3342.3,0.00449324]
[1737913658134,0.59844,3342.5,3342.3,0.00449324]
[1737913658436,3.80612,3343.2,3342.8,0.59837]
[1737913658633,3.2078,3343.2,3342.8,0.59837]
[1737913658831,0.59833,3343.1,3342.7,0.5984]
[1737913659134,3.80612,3343.2,3342.8,0.59839]
[1737913659530,3.2078,3343.2,3342.4,5.75253509]
[1737913659735,0.59841,3342.7,3342.4,4.30175]
[1737913660140,0.59841,3342.7,3342.4,3.80626]
[1737913660434,0.59841,3342.7,3342.4,3.2078]
[1737913660729,0.59841,3342.7,3342.4,3.80624]
[1737913661326,0.59841,3342.7,3342.4,3.2078]
[1737913661526,0.59842,3342.6,3342.4,3.2078]
[1737913661728,3.2078,3343.2,3342.4,3.2078]
[1737913661935,0.59844,3342.5,3342.4,3.2078]
[1737913662129,3.2078,3343.2,3342.4,3.2078]
[1737913662437,0.59835,3343.0,3342.8,3.2078]
[1737913662641,0.59837,3342.9,3342.8,3.2078]
[1737913663440,0.59835,3343.0,3342.8,3.2078]
[1737913663829,0.59828,3343.4,3342.8,3.2078]
[1737913664235,0.59836,3343.0,3342.8,3.2078]
[1737913664540,0.59836,3343.0,3342.8,3.705]
[1737913665241,0.59834,3343.1,3342.8,4.30338]
[1737913665440,5.21054,3343.6,3342.8,3.705]
[1737913665739,0.59836,3343.0,3342.8,3.705]
[1737913665934,3.7149,3343.6,3342.8,3.705]
[1737913666130,0.59837,3342.9,3342.8,3.705]
[1737913666327,3.7149,3343.6,3342.8,4.30337]
[1737913666532,0.59835,3343.0,3342.8,3.705]
[1737913666939,0.59837,3342.9,3342.8,3.705]
[1737913667241,3.7149,3343.6,3342.8,3.705]
[1737913667440,5.21053,3343.6,3342.8,3.705]
[1737913667628,0.59837,3342.9,3342.8,3.705]
[1737913668032,0.59837,3342.9,3342.8,3.2078]
[1737913668733,1.49566,3343.5,3342.5,1.5892893]
[1737913668939,4.70359,3343.2,3342.5,1.5892893]
[1737913669137,0.59842,3342.6,3342.5,1.5892893]
[1737913669536,0.59844,3342.5,3342.4,3.7028]
[1737913671136,1.0159,3342.9,3342.4,3.7028]
[1737913671639,0.59844,3342.5,3342.4,3.7028]
[1737913671833,0.4967,3342.9,3342.4,3.7028]
[1737913672029,1.09507,3342.9,3342.6,0.59841]
[1737913672241,0.4967,3342.9,3342.4,3.7028]
[1737913672442,0.5984,3342.8,3342.4,3.7028]
[1737913672643,0.5984,3342.8,3342.6,0.59842]
[1737913673343,0.4967,3342.9,3342.4,3.7028]
[1737913673540,0.4967,3342.9,3342.4,4.30125]
[1737913673745,0.59841,3342.7,3342.4,3.7028]
[1737913673949,0.59841,3342.7,3342.5,0.59843]
[1737913674332,0.59843,3342.6,3342.4,4.30125]
[1737913674742,0.4967,3342.9,3342.4,3.7028]
[1737913675044,0.59844,3342.5,3342.4,3.7028]
[1737913675244,0.59842,3342.7,3342.4,4.30124]
[1737913675441,0.4787,3342.8,3342.4,4.30124]
[1737913675642,0.59844,3342.5,3342.4,4.30124]
[1737913675946,0.59843,3342.6,3342.4,4.30124]
[1737913676649,0.59843,3342.6,3342.5,0.59844]
[1737913677442,0.59843,3342.6,3342.4,4.30125]
[1737913677647,0.59844,3342.5,3342.4,4.30125]
[1737913677847,0.5984,3342.7,3342.4,4.30125]
[1737913678047,0.59844,3342.6,3342.4,4.30125]
[1737913678246,0.4967,3342.9,3342.4,3.7028]
[1737913678451,0.59839,3342.8,3342.7,0.5984]
[1737913678640,0.5984,3342.8,3342.6,0.59841]
[1737913679240,0.5984,3342.8,3342.4,3.7028]
[1737913679450,0.5984,3342.8,3342.6,0.59841]
[1737913679651,0.59841,3342.7,3342.5,0.59844]
[1737913679841,0.59841,3342.7,3342.5,0.59843]
[1737913680553,0.59843,3342.6,3342.4,4.30125]
[1737913680847,0.4967,3342.9,3342.4,3.7028]
[1737913681145,0.59844,3342.5,3342.4,3.2078]
[1737913681352,0.59846,3342.4,3342.3,0.90207873]
[1737913688347,0.59846,3342.4,3341.6,3.2078]
[1737913688348,4.2538,3342.4,3341.6,3.2078]
[1737913688546,0.59858,3341.7,3341.6,3.2078]
[1737913688947,3.2078,3342.0,3341.3,2.54902395]
[1737913689146,0.4899,3341.6,3341.1,3.2078]
[1737913689450,3.2078,3341.5,3341.0,0.50149324]
[1737913689649,3.2078,3341.5,3341.0,0.00449324]
[1737913689854,0.59869,3341.1,3341.0,0.00449324]
[1737913690356,3.80649,3341.1,3341.0,0.00449324]
[1737913692855,8.2078,3341.1,3340.3,3.2078]
[1737913693058,0.59882,3340.4,3340.3,3.2078]
[1737913693560,0.59881,3340.5,3340.3,3.2078]
[1737913694554,0.59866,3341.3,3341.0,0.59871]
[1737913694767,0.59868,3341.2,3340.9,0.59873]
[1737913695452,3.2078,3341.5,3340.8,2.06384934]
[1737913695752,0.59874,3340.9,3340.7,3.2078]
[1737913696459,0.5987,3341.1,3340.8,0.59874]
[1737913697047,3.2078,3341.5,3340.5,1.59154934]
[1737913697251,3.2078,3341.5,3340.7,0.59875]
[1737913697451,3.2078,3341.5,3340.5,1.59154934]
[1737913697666,2.0113,3341.4,3340.5,1.59154934]
[1737913697857,0.59878,3340.6,3340.5,1.59154934]
[1737913698360,0.59882,3340.4,3340.3,3.7023]
[1737913698661,0.59881,3340.5,3340.3,3.7023]
[1737913699859,1.49678,3341.0,3340.3,3.7023]
[1737913700059,1.49678,3341.0,3340.1,0.00449324]
[1737913700060,0.59884,3340.3,3340.1,0.00449324]
[1737913700364,0.59881,3340.5,3340.2,2.19038934]
[1737913700665,0.59881,3340.5,3340.2,2.69718934]
[1737913701766,0.59883,3340.4,3340.2,1.59154934]
[1737913702556,0.59883,3340.3,3340.2,1.59154934]
[1737913703262,0.59874,3340.8,3340.2,2.19039934]
[1737913703462,0.59883,3340.4,3340.2,1.59154934]
[1737913704460,1.039,3340.9,3340.2,1.59154934]
[1737913704661,0.59883,3340.3,3340.2,1.59154934]
[1737913704858,0.59885,3340.2,3340.1,0.00449324]
[1737913705065,3.2078,3340.4,3340.1,0.00449324]
[1737913705364,0.59884,3340.3,3340.1,0.00449324]
[1737913706163,0.59885,3340.2,3340.1,0.00449324]
[1737913707467,1.038,3340.8,3340.1,0.00449324]
[1737913707765,0.59881,3340.5,3340.2,0.59884]
[1737913707963,1.038,3340.8,3340.1,0.60335324]
[1737913708164,0.59883,3340.3,3340.1,0.60335324]
[1737913708368,0.59885,3340.2,3340.1,0.00449324]
[1737913708566,0.59885,3340.3,3340.1,0.00449324]
[1737913708867,0.59885,3340.2,3340.1,0.00449324]
[1737913712859,3.80665,3340.2,3340.1,0.00449324]
[1737913713867,0.59885,3340.2,3340.1,0.00449324]
[1737913714069,0.59884,3340.3,3340.1,0.60335324]
[1737913714271,0.59885,3340.2,3340.1,0.00449324]
[1737913718061,0.4976,3340.5,3340.1,0.00449324]
[1737913718260,0.59885,3340.2,3340.1,0.00449324]
[1737913719966,0.59884,3340.3,3340.2,0.59885]
[1737913720178,0.59883,3340.3,3340.2,2.19038934]
[1737913720382,1.49689,3340.8,3340.2,2.19038934]
[1737913720383,1.49689,3340.8,3340.2,1.59154934]
[1737913720582,0.59882,3340.4,3340.3,4.32053]
[1737913720982,0.5069,3340.9,3340.3,3.7217]
[1737913721480,4.70457,3341.1,3340.5,0.5988]
[1737913721681,4.70457,3341.1,3340.4,0.59881]
[1737913721682,0.5988,3340.5,3340.4,0.59881]
[1737913721881,0.59882,3340.4,3340.3,4.32053]
[1737913722079,0.59881,3340.5,3340.4,0.59881]
[1737913722284,4.70457,3341.1,3340.4,0.59881]
[1737913722481,0.5988,3340.5,3340.4,0.59881]
[1737913722687,3.2078,3341.1,3340.4,0.5988]
[1737913723285,0.59878,3340.6,3340.4,0.59881]
[1737913723584,0.59877,3340.7,3340.5,0.59879]
[1737913724086,0.59877,3340.7,3340.6,0.59878]
[1737913724984,0.59868,3341.2,3341.1,0.59868]
[1737913725980,0.59866,3341.3,3341.2,0.59866]
[1737913726385,0.50109324,3341.7,3341.0,0.5045]
[1737913726580,0.59863,3341.5,3341.0,0.5045]
[1737913726779,0.59863,3341.5,3341.1,0.59869]
[1737913726985,0.59863,3341.5,3341.0,0.5045]
[1737913727381,0.59863,3341.5,3341.4,0.59864]
[1737913727882,0.60309324,3341.7,3341.4,0.59864]
[1737913728088,0.00449324,3341.7,3341.6,0.5986]
[1737913729082,0.00449324,3341.7,3341.6,1.0911]
[1737913732193,1.08925,3342.5,3341.6,5.4925]
[1737913732394,0.59846,3342.4,3342.3,0.59846]
[1737913732591,0.4908,3342.5,3342.4,0.59846]
[1737913732793,0.4908,3342.5,3342.4,3.80626]
[1737913732993,1.11422,3342.7,3342.4,3.2078]
[1737913733298,1.11422,3342.7,3342.6,0.59842]
[1737913733589,1.11422,3342.7,3342.5,0.59843]
[1737913733794,1.11422,3342.7,3342.4,3.2078]
[1737913733795,0.5158,3342.7,3342.4,3.2078]
[1737913734102,0.59848,3342.3,3342.2,0.00449324]
[1737913736392,0.59845,3342.5,3342.3,0.59847]
[1737913736593,0.59846,3342.4,3342.2,0.60297324]
[1737913736794,0.59848,3342.3,3342.2,0.60297324]
[1737913736998,1.11698,3342.3,3342.2,0.00449324]
[1737913741296,0.59855,3341.9,3341.8,3.2078]
[1737913742302,0.59855,3341.9,3341.8,3.80637]
[1737913743100,0.59849,3342.2,3341.8,3.80635]
[1737913743299,0.59854,3342.0,3341.8,3.80635]
[1737913743499,0.59854,3342.0,3341.8,3.2078]
[1737913743701,0.59854,3342.0,3341.9,0.59855]
[1737913744203,3.7263,3342.3,3341.9,0.59855]
[1737913744400,3.7263,3342.3,3341.8,3.2078]
[1737913744598,0.59854,3342.0,3341.8,3.80636]
[1737913744800,0.5202,3341.9,3341.8,3.80636]
[1737913745709,3.7263,3342.3,3342.2,0.59849]
[1737913746200,0.5185,3342.3,3342.2,0.59849]
[1737913749203,0.5185,3342.3,3342.2,1.09309]
[1737913750106,0.5202,3342.5,3342.4,0.59846]
[1737913751205,0.4732,3342.7,3342.6,0.59842]
[1737913751206,1.07161,3342.7,3342.6,0.59842]
[1737913751406,3.2078,3342.8,3342.2,0.4946]
[1737913751407,3.2078,3342.8,3342.7,0.5984]
[1737913752005,3.80619,3342.8,3342.7,0.5984]
[1737913752203,0.00449324,3342.9,3342.6,0.4831]
[1737913752406,0.60287324,3342.9,3342.7,0.59839]
[1737913752902,0.00449324,3342.9,3342.8,0.59839]
[1737913753504,0.00449324,3342.9,3342.8,2.18993934]
[1737913756516,0.5063,3343.6,3343.5,0.59826]
[1737913757720,1.10454,3343.6,3343.5,0.59826]
[1737913758418,0.00446995,3343.9,3343.4,0.4886]
[1737913758614,0.00446995,3343.9,3343.8,2.18975934]
[1737913759116,0.00446995,3343.9,3343.8,2.70795934]
[1737913759319,0.60265995,3343.9,3343.8,2.10974934]
[1737913759513,0.00446995,3343.9,3343.8,2.70795934]
[1737913759820,0.60265995,3343.9,3343.8,2.10974934]
[1737913760017,0.00446995,3343.9,3343.7,3.2078]
[1737913760323,0.59824,3343.6,3343.5,0.89726334]
[1737913777026,0.5166,3343.8,3343.5,0.89726334]
[1737913777327,1.11481,3343.8,3343.6,0.59824]
[1737913777527,0.5166,3343.8,3343.7,0.59823]
[1737913777821,1.08036995,3343.9,3343.7,0.59823]
[1737913778025,0.00446995,3343.9,3343.8,2.18975934]
[1737913778723,0.00446995,3343.9,3343.8,2.67885934]
[1737913781331,0.60265995,3343.9,3343.8,2.67885934]
[1737913781830,0.00446995,3343.9,3343.8,2.67885934]
[1737913783131,0.60265995,3343.9,3343.8,2.67885934]
[1737913783948,0.60265995,3343.9,3343.8,2.08064934]
[1737913784528,0.60265995,3343.9,3343.8,0.4891]
[1737913784720,0.00446995,3343.9,3343.6,3.2078]
[1737913784922,0.59823,3343.7,3343.6,3.2078]
[1737913785231,0.59823,3343.7,3343.6,3.80604]
[1737913785733,0.59822,3343.8,3343.7,0.59823]
[1737913786026,0.60266995,3343.9,3343.6,3.2078]
[1737913786328,0.60266995,3343.9,3343.8,0.59821]
[1737913786533,0.00446995,3343.9,3343.8,0.59821]
[1737913786828,0.60265995,3343.9,3343.8,0.59821]
[1737913787032,0.59822,3343.8,3343.6,3.80603]
[1737913787328,0.59822,3343.8,3343.6,3.2078]
[1737913787532,0.59822,3343.8,3343.7,0.59823]
[1737913787730,0.59823,3343.7,3343.6,3.80603]
[1737913788034,0.59823,3343.7,3343.6,3.2078]
[1737913789036,0.59824,3343.6,3343.5,1.79452668]
[1737913790724,8.2078,3343.6,3343.2,0.00448624]
[1737913790928,0.59837,3342.9,3342.8,3.2078]
[1737913792232,0.5984,3342.7,3342.5,0.00448624]
[1737913792433,0.59842,3342.6,3342.5,0.00448624]
[1737913795843,0.4881,3343.1,3342.5,1.59603558]
[1737913796035,2.49467,3343.5,3342.5,1.59603558]
[1737913796240,0.59836,3343.0,3342.8,0.59837]
[1737913796443,0.59836,3343.0,3342.9,0.9969]
[1737913798743,0.59834,3343.1,3342.9,1.59527]
[1737913798945,4.6681,3343.6,3342.9,0.9969]
[1737913799142,0.59834,3343.1,3342.9,0.9969]
[1737913800140,0.59834,3343.1,3342.9,1.59526]
[1737913800345,0.59832,3343.2,3343.0,0.59835]
[1737913800537,5.6651,3343.6,3343.0,0.59834]
[1737913800538,0.59831,3343.3,3343.0,0.59834]
[1737913801045,0.59826,3343.5,3343.2,0.59831]
[1737913801236,4.2048,3343.6,3343.2,0.59831]
[1737913801437,0.59829,3343.4,3343.1,0.59832]
[1737913801640,0.59829,3343.4,3343.2,0.59831]
[1737913802345,0.59834,3343.1,3342.9,1.59526]
[1737913802542,0.59834,3343.1,3342.9,0.9969]
[1737913802939,0.59834,3343.1,3342.9,1.59526]
[1737913803141,0.59826,3343.5,3343.2,0.59831]
[1737913803350,0.5983,3343.4,3343.2,0.59831]
[1737913803748,3.2078,3343.6,3342.9,0.9969]
[1737913803950,0.59828,3343.4,3343.3,0.59829]
[1737913804247,0.59821,3343.8,3343.7,0.59822]
[1737913804545,0.59821,3343.8,3343.4,0.5186]
[1737913804546,0.00446995,3343.9,3343.4,2.11014934]
[1737913804750,0.00446995,3343.9,3343.5,0.59826]
[1737913804947,0.59823,3343.7,3343.6,1.11914]
[1737913805249,0.59823,3343.7,3343.6,0.5209]
[1737913805448,0.59823,3343.7,3343.6,1.11914]
[1737913805649,0.59823,3343.7,3343.6,0.5209]
[1737913805948,0.59823,3343.7,3343.6,1.11914]
[1737913806648,0.59823,3343.7,3343.6,0.5209]
[1737913807751,0.59823,3343.7,3343.6,1.11914]
[1737913807955,0.00446995,3343.9,3343.6,0.5209]
[1737913808348,0.59823,3343.7,3343.6,1.11913]
[1737913809049,0.59823,3343.7,3343.6,0.5209]
[1737913809249,0.00446995,3343.9,3343.2,3.2078]
[1737913809451,0.4738,3343.8,3343.3,0.59829]
[1737913809754,0.59828,3343.4,3343.3,0.59829]
[1737913809954,0.5054,3343.7,3343.2,3.704]
[1737913810147,0.59827,3343.5,3343.4,0.59827]
[1737913810853,0.5054,3343.7,3343.2,3.704]
[1737913811244,0.5983,3343.3,3343.2,4.30231]
[1737913811650,0.5983,3343.3,3343.2,0.4962]
[1737913812450,0.5983,3343.3,3343.2,1.09451]
[1737913812653,0.59829,3343.4,3343.3,0.59829]
[1737913813051,0.5983,3343.3,3343.2,1.0945]
[1737913813859,3.2078,3343.6,3343.2,0.4962]
[1737913814055,0.59837,3342.9,3342.8,5.39772934]
[1737913814358,0.59836,3343.0,3342.9,0.59836]
[1737913815056,0.4875,3343.5,3342.8,3.2078]
[1737913815256,0.59837,3342.9,3342.8,3.80617]
[1737913815754,0.59837,3342.9,3342.8,3.2078]
[1737913816256,0.59825,3343.6,3343.5,0.59826]
[1737913816646,4.70325,3344.0,3343.3,3.2078]
[1737913816851,0.59828,3343.4,3343.3,3.2078]
[1737913817253,0.59828,3343.4,3343.3,3.8061]
[1737913818655,0.51676995,3343.9,3343.3,3.2078]
[1737913818959,0.59823,3343.7,3343.4,0.59828]
[1737913819149,0.59823,3343.7,3343.3,3.2078]
[1737913819652,0.59823,3343.7,3343.5,0.59825]
[1737913819852,0.00446995,3343.9,3343.3,3.2078]
[1737913820052,0.59825,3343.6,3343.4,0.59826]
[1737913820252,0.59825,3343.6,3343.5,0.59826]
[1737913821156,0.00446995,3343.9,3343.3,3.2078]
[1737913821361,0.59827,3343.5,3343.4,0.59827]
[1737913824456,0.59826,3343.6,3343.5,0.59825]
[1737913824760,0.00446995,3343.9,3343.3,3.2078]
[1737913824961,0.59827,3343.5,3343.4,0.59827]
[1737913826259,0.00446995,3343.9,3343.3,3.2078]
[1737913826455,0.59828,3343.4,3343.3,3.80609]
[1737913827158,0.59828,3343.4,3343.3,3.2078]
[1737913834763,0.59833,3343.2,3343.0,0.59835]
[1737913834963,0.59833,3343.1,3343.0,0.59835]
[1737913835171,0.59835,3343.0,3342.9,3.80615]
[1737913835369,0.59834,3343.1,3343.0,0.59833]
[1737913835569,0.59835,3343.0,3342.9,3.80615]
[1737913835769,0.59834,3343.1,3343.0,0.59833]
[1737913836475,0.59834,3343.1,3343.0,0.4755]
[1737913836668,0.59834,3343.1,3343.0,1.07385]